fUSD/lending_fUSD_20251229
["ID","MTS","AMOUNT","RATE_DAILY","PERIOD"]
[399995158,1766992242251,-461.0,0.00040365,30]
[399995159,1766992242260,-150.0,0.00040442,7]
[399995160,1766992242269,-150.0,0.00040442,7]
[399995161,1766992242279,-500.0,0.000405,30]
[399995162,1766992242288,-227.8,0.00040617,7]
[399995163,1766992242298,-150.0,0.0004065,7]
[399995165,1766992242307,-150.0,0.0004065,7]
[399995166,1766992242317,-168.0,0.00040688,2]
[399995167,1766992242325,-461.0,0.00040782,30]
[399995168,1766992242335,-250.8391,0.000408,30]
[399995169,1766992242344,-250.8391,0.000408,30]
[399995170,1766992242354,-250.8393,0.000408,60]
[399995171,1766992242365,-481.65,0.00040822,2]
[399995173,1766992242374,-481.65,0.00040822,2]
[399995175,1766992242384,-481.65,0.00040822,2]
[399995177,1766992242393,-481.65,0.00040822,2]
[399995179,1766992242402,-481.65,0.00040822,2]
[399995180,1766992242411,-481.65,0.00040822,2]
[399995181,1766992242420,-481.65,0.00040822,2]
[399995182,1766992242429,-481.65,0.00040822,2]
[399995183,1766992242438,-481.65,0.00040822,2]
[399995184,1766992242447,-481.65,0.00040822,2]
[399995185,1766992242456,-481.65,0.00040822,2]
[399995186,1766992242466,-481.65,0.00040822,2]
[399995187,1766992242475,-481.65,0.00040822,2]
[399995188,1766992242484,-178.66,0.00041014,2]
[399995189,1766992242493,-1351.0,0.00041041,7]
[399995190,1766992242504,-150.0,0.00041065,7]
[399995191,1766992242515,-499.965,0.00041095,120]
[399995192,1766992242524,-185.41040503,0.00041095,120]
[399995193,1766992242533,-500.0,0.00041095,120]
[399995194,1766992242543,-500.0,0.00041095,120]
[399995195,1766992242556,-500.0,0.00041095,120]
[399995196,1766992242566,-467.07305903,0.00041095,120]
[399995197,1766992242575,-1405.01,0.00041095,120]
[399995198,1766992242585,-1405.01,0.00041095,120]
[399995199,1766992242594,-1405.01,0.00041095,120]
[399995200,1766992242607,-1405.01,0.00041095,120]
[399995201,1766992242616,-500.0,0.00041095,120]
[399995202,1766992242625,-500.0,0.00041095,120]
[399995203,1766992242634,-500.0,0.00041095,120]
[399995204,1766992242642,-269.34073731,0.00041095,120]
[399995205,1766992242652,-312.21181666,0.00041096,2]
[399995206,1766992242661,-178.66,0.00041096,2]
[399995207,1766992242670,-178.66,0.00041096,2]
[399995208,1766992242680,-178.66,0.00041096,2]
[399995209,1766992242689,-178.66,0.00041096,2]
[399995210,1766992242699,-178.66,0.00041096,2]
[399995211,1766992242709,-178.66,0.00041096,2]
[399995212,1766992242718,-178.66,0.00041096,2]
[399995213,1766992242728,-178.66,0.00041096,2]
[399995214,1766992242739,-358.49,0.00041096,2]
[399995215,1766992242749,-204.3220801,0.00041164,2]
[399995216,1766992242759,-461.0,0.00041198,30]
[399995217,1766992242768,-150.0,0.00041293,120]
[399995218,1766992242778,-1000.0,0.000413,120]
[399995219,1766992242787,-500.0,0.00041314,60]
[399995220,1766992242796,-500.0,0.00041314,60]
[399995221,1766992242806,-500.0,0.00041314,60]
[399995222,1766992242817,-1405.01,0.00041389,120]
[399995223,1766992242827,-10085.4788,0.0004139,2]
[399995224,1766992242838,-7313.15432606,0.000414,2]
[399995225,1766992242848,-10000.0,0.000414,2]
[399995226,1766992242860,-220.76404125,0.000414,8]
[399995227,1766992242871,-341.34054317,0.000414,2]
[399995228,1766992242880,-9431.9840173,0.000414,15]
[399995229,1766992242890,-1140.0480697,0.000414,2]
[399995230,1766992242900,-170.362165,0.00041431,120]
[399995231,1766992242911,-32269.2509154,0.00041441,2]
[399995232,1766992242920,-500.0,0.00041441,120]
[399995233,1766992242929,-500.0,0.00041441,120]
[399995234,1766992242939,-500.0,0.00041441,120]
[399995235,1766992242948,-500.0,0.00041441,120]
[399995236,1766992242958,-500.0,0.00041441,120]
[399995237,1766992242967,-500.0,0.00041441,120]
[399995238,1766992242975,-500.0,0.00041441,120]
[399995239,1766992242985,-500.0,0.00041441,120]
[399995240,1766992243001,-500.0,0.00041441,120]
[399995241,1766992243010,-500.0,0.00041441,120]
[399995242,1766992243019,-500.0,0.00041441,120]
[399995243,1766992243028,-500.0,0.00041441,120]
[399995244,1766992243037,-500.0,0.00041441,120]
[399995245,1766992243047,-500.0,0.00041441,120]
[399995246,1766992243056,-500.0,0.00041441,120]
[399995247,1766992243065,-500.0,0.00041441,120]
[399995248,1766992243074,-500.0,0.00041441,120]
[399995249,1766992243083,-500.0,0.00041441,120]
[399995250,1766992243094,-500.0,0.00041441,120]
[399995251,1766992243105,-500.0,0.00041441,120]
[399995252,1766992243114,-500.0,0.00041441,120]
[399995253,1766992243126,-500.0,0.00041441,120]
[399995254,1766992243138,-500.0,0.00041441,120]
[399995255,1766992243148,-500.0,0.00041441,120]
[399995256,1766992243157,-500.0,0.00041441,120]
[399995257,1766992243167,-500.0,0.00041441,120]
[399995258,1766992243178,-500.0,0.00041441,120]
[399995259,1766992243188,-500.0,0.00041441,120]
[399995260,1766992243197,-500.0,0.00041441,120]
[399995261,1766992243207,-500.0,0.00041441,120]
[399995262,1766992243216,-500.0,0.00041441,120]
[399995263,1766992243226,-500.0,0.00041441,120]
[399995264,1766992243235,-500.0,0.00041441,120]
[399995265,1766992243244,-500.0,0.00041441,120]
[399995266,1766992243254,-500.0,0.00041441,120]
[399995267,1766992243263,-500.0,0.00041441,120]
[399995268,1766992243272,-500.0,0.00041441,120]
[399995269,1766992243281,-500.0,0.00041441,120]
[399995270,1766992243294,-500.0,0.00041441,120]
[399995271,1766992243304,-500.0,0.00041441,120]
[399995273,1766992243314,-500.0,0.00041441,120]
[399995275,1766992243323,-500.0,0.00041441,120]
[399995276,1766992243333,-500.0,0.00041441,120]
[399995277,1766992243342,-500.0,0.00041441,120]
[399995279,1766992243572,-500.0,0.00041441,120]
[399995280,1766992243582,-500.0,0.00041441,120]
[399995281,1766992243591,-500.0,0.00041441,120]
[399995282,1766992243600,-500.0,0.00041441,120]
[399995283,1766992243611,-500.0,0.00041441,120]
[399995284,1766992243621,-500.0,0.00041441,120]
[399995285,1766992243631,-500.0,0.00041441,120]
[399995286,1766992243641,-500.0,0.00041441,120]
[399995287,1766992243651,-500.0,0.00041441,120]
[399995288,1766992243663,-500.0,0.00041441,120]
[399995289,1766992243673,-500.0,0.00041441,120]
[399995290,1766992243683,-500.0,0.00041441,120]
[399995291,1766992243693,-500.0,0.00041441,120]
[399995292,1766992243702,-500.0,0.00041441,120]
[399995293,1766992243712,-500.0,0.00041441,120]
[399995294,1766992243721,-500.0,0.00041441,120]
[399995295,1766992243731,-500.0,0.00041441,120]
[399995296,1766992243740,-500.0,0.00041441,120]
[399995297,1766992243750,-500.0,0.00041441,120]
[399995298,1766992243759,-500.0,0.00041441,120]
[399995299,1766992243768,-500.0,0.00041441,120]
[399995300,1766992243777,-500.0,0.00041441,120]
[399995301,1766992243787,-500.0,0.00041441,120]
[399995302,1766992243796,-500.0,0.00041441,120]
[399995303,1766992243805,-500.0,0.00041441,120]
[399995304,1766992243814,-500.0,0.00041441,120]
[399995305,1766992243823,-500.0,0.00041441,120]
[399995306,1766992243832,-500.0,0.00041441,120]
[399995307,1766992243840,-500.0,0.00041441,120]
[399995308,1766992243849,-500.0,0.00041441,120]
[399995309,1766992243859,-500.0,0.00041441,120]
[399995310,1766992243868,-500.0,0.00041441,120]
[399995311,1766992243877,-500.0,0.00041441,120]
[399995312,1766992243887,-500.0,0.00041441,120]
[399995313,1766992243896,-500.0,0.00041441,120]
[399995314,1766992243905,-500.0,0.00041441,120]
[399995315,1766992243914,-500.0,0.00041441,120]
[399995316,1766992243923,-500.0,0.00041441,120]
[399995317,1766992243932,-500.0,0.00041441,120]
[399995318,1766992243942,-500.0,0.00041441,120]
[399995319,1766992243951,-500.0,0.00041441,120]
[399995320,1766992243960,-500.0,0.00041441,120]
[399995321,1766992243969,-500.0,0.00041441,120]
[399995322,1766992243978,-500.0,0.00041441,120]
[399995323,1766992243987,-500.0,0.00041441,120]
[399995324,1766992243996,-500.0,0.00041441,120]
[399995325,1766992244006,-500.0,0.00041441,120]
[399995326,1766992244016,-500.0,0.00041441,120]
[399995327,1766992244025,-500.0,0.00041441,120]
[399995328,1766992244034,-500.0,0.00041441,120]
[399995329,1766992244043,-500.0,0.00041441,120]
[399995330,1766992244052,-500.0,0.00041441,120]
[399995331,1766992244062,-500.0,0.00041441,120]
[399995332,1766992244072,-500.0,0.00041441,120]
[399995333,1766992244081,-500.0,0.00041441,120]
[399995334,1766992244090,-500.0,0.00041441,120]
[399995335,1766992244099,-500.0,0.00041441,120]
[399995336,1766992244109,-500.0,0.00041441,120]
[399995337,1766992244120,-500.0,0.00041441,120]
[399995338,1766992244129,-500.0,0.00041441,120]
[399995339,1766992244142,-500.0,0.00041441,120]
[399995340,1766992244151,-500.0,0.00041441,120]
[399995341,1766992244161,-500.0,0.00041441,120]
[399995342,1766992244170,-500.0,0.00041441,120]
[399995343,1766992244180,-500.0,0.00041441,120]
[399995344,1766992244189,-500.0,0.00041441,120]
[399995345,1766992244200,-500.0,0.00041441,120]
[399995346,1766992244210,-500.0,0.00041441,120]
[399995347,1766992244219,-500.0,0.00041441,120]
[399995348,1766992244229,-500.0,0.00041441,120]
[399995349,1766992244238,-500.0,0.00041441,120]
[399995350,1766992244248,-500.0,0.00041441,120]
[399995351,1766992244257,-500.0,0.00041441,120]
[399995352,1766992244267,-500.0,0.00041441,120]
[399995353,1766992244276,-500.0,0.00041441,120]
[399995354,1766992244285,-500.0,0.00041441,120]
[399995355,1766992244294,-500.0,0.00041441,120]
[399995356,1766992244303,-500.0,0.00041441,120]
[399995357,1766992244313,-500.0,0.00041441,120]
[399995358,1766992244322,-500.0,0.00041441,120]
[399995359,1766992244332,-500.0,0.00041441,120]
[399995360,1766992244341,-500.0,0.00041441,120]
[399995361,1766992244351,-889.0,0.00041441,120]
[399995362,1766992244361,-500.0,0.00041441,120]
[399995363,1766992244370,-500.0,0.00041441,120]
[399995364,1766992244379,-500.0,0.00041441,120]
[399995365,1766992244389,-500.0,0.00041441,120]
[399995366,1766992244398,-500.0,0.00041441,120]
[399995367,1766992244407,-500.0,0.00041441,120]
[399995368,1766992244416,-500.0,0.00041441,120]
[399995369,1766992244426,-500.0,0.00041441,120]
[399995370,1766992244435,-500.0,0.00041441,120]
[399995371,1766992244444,-500.0,0.00041441,120]
[399995372,1766992244454,-500.0,0.00041441,120]
[399995373,1766992244464,-500.0,0.00041441,120]
[399995374,1766992244473,-500.0,0.00041441,120]
[399995375,1766992244482,-500.0,0.00041441,120]
[399995376,1766992244492,-500.0,0.00041441,120]
[399995377,1766992244501,-500.0,0.00041441,120]
[399995378,1766992244512,-500.0,0.00041441,120]
[399995379,1766992244521,-500.0,0.00041441,120]
[399995380,1766992244531,-500.0,0.00041441,120]
[399995381,1766992244540,-500.0,0.00041441,120]
[399995382,1766992244550,-500.0,0.00041441,120]
[399995384,1766992244559,-500.0,0.00041441,120]
[399995385,1766992244568,-500.0,0.00041441,120]
[399995386,1766992244577,-500.0,0.00041441,120]
[399995387,1766992244587,-500.0,0.00041441,120]
[399995388,1766992244596,-500.0,0.00041441,120]
[399995389,1766992244605,-500.0,0.00041441,120]
[399995390,1766992244615,-500.0,0.00041441,120]
[399995391,1766992244624,-500.0,0.00041441,120]
[399995392,1766992244633,-500.0,0.00041441,120]
[399995393,1766992244643,-500.0,0.00041441,120]
[399995394,1766992244652,-500.0,0.00041441,120]
[399995395,1766992244661,-500.0,0.00041441,120]
[399995396,1766992244670,-500.0,0.00041441,120]
[399995397,1766992244679,-500.0,0.00041441,120]
[399995398,1766992244688,-500.0,0.00041441,120]
[399995399,1766992244697,-500.0,0.00041441,120]
[399995400,1766992244706,-500.0,0.00041441,120]
[399995401,1766992244715,-500.0,0.00041441,120]
[399995402,1766992244724,-500.0,0.00041441,120]
[399995403,1766992244733,-500.0,0.00041441,120]
[399995404,1766992244742,-500.0,0.00041441,120]
[399995405,1766992244754,-500.0,0.00041441,120]
[399995406,1766992244763,-500.0,0.00041441,120]
[399995407,1766992244772,-500.0,0.00041441,120]
[399995408,1766992244781,-500.0,0.00041441,120]
[399995409,1766992244791,-500.0,0.00041441,120]
[399995410,1766992244800,-500.0,0.00041441,120]
[399995411,1766992244810,-500.0,0.00041441,120]
[399995412,1766992244819,-500.0,0.00041441,120]
[399995413,1766992244828,-500.0,0.00041441,120]
[399995414,1766992244838,-500.0,0.00041441,120]
[399995415,1766992244848,-500.0,0.00041441,120]
[399995416,1766992244857,-500.0,0.00041441,120]
[399995417,1766992244867,-500.0,0.00041441,120]
[399995418,1766992244877,-500.0,0.00041441,120]
[399995419,1766992244887,-500.0,0.00041441,120]
[399995420,1766992244897,-500.0,0.00041441,120]
[399995421,1766992244906,-500.0,0.00041441,120]
[399995422,1766992244916,-500.0,0.00041441,120]
[399995423,1766992244926,-500.0,0.00041441,120]
[399995424,1766992244936,-500.0,0.00041441,120]
[399995425,1766992244947,-500.0,0.00041441,120]
[399995426,1766992244957,-500.0,0.00041441,120]
[399995427,1766992244967,-500.0,0.00041441,120]
[399995428,1766992244978,-500.0,0.00041441,120]
[399995429,1766992244988,-500.0,0.00041441,120]
[399995430,1766992245000,-500.0,0.00041441,120]
[399995431,1766992245010,-500.0,0.00041441,120]
[399995432,1766992245021,-500.0,0.00041441,120]
[399995433,1766992245032,-500.0,0.00041441,120]
[399995434,1766992245041,-500.0,0.00041441,120]
[399995435,1766992245051,-500.0,0.00041441,120]
[399995436,1766992245061,-682.0,0.00041441,120]
[399995437,1766992245070,-150.0,0.00041473,60]
[399995438,1766992245079,-161.1699901,0.00041479,30]
[399995439,1766992245088,-157.83595805,0.00041479,30]
[399995440,1766992245098,-239.97655917,0.00041479,30]
[399995441,1766992245107,-160.09867247,0.00041479,30]
[399995442,1766992245116,-159.79234637,0.00041479,30]
[399995443,1766992245132,-206.02935763,0.00041479,30]
[399995444,1766992245141,-300.0,0.00041498,30]
[399995445,1766992245150,-300.0,0.00041499,30]
[399995446,1766992245159,-1161.75,0.00041499,120]
[399995447,1766992245170,-1405.01,0.00041499,120]
[399995448,1766992245180,-1405.01,0.00041499,120]
[399995449,1766992245190,-1405.01,0.00041499,120]
[399995450,1766992245199,-1405.01,0.00041499,120]
[399995451,1766992245212,-1405.01,0.00041499,120]
[399995452,1766992245222,-1405.01,0.00041499,120]
[399995453,1766992245231,-1405.01,0.00041499,120]
[399995454,1766992245241,-1405.01,0.00041499,120]
[399995455,1766992245251,-1405.01,0.00041499,120]
[399995456,1766992245261,-1405.01,0.00041499,120]
[399995457,1766992245270,-1405.01,0.00041499,120]
[399995458,1766992245279,-1405.01,0.00041499,120]
[399995459,1766992245290,-1405.01,0.00041499,120]
[399995460,1766992245299,-1405.01,0.00041499,120]
[399995461,1766992245309,-1405.01,0.00041499,120]
[399995462,1766992245319,-1405.01,0.00041499,120]
[399995463,1766992245328,-1405.01,0.00041499,120]
[399995464,1766992245338,-1405.01,0.00041499,120]
[399995465,1766992245347,-1405.19542362,0.00041499,120]
[399995466,1766992245357,-500.0,0.00041499,120]
[399995467,1766992245366,-300.0,0.00041499,120]
[399995469,1766992245376,-500.0,0.00041499,120]
[399995471,1766992245385,-311.1,0.00041499,120]
[399995473,1766992245394,-500.0,0.00041499,120]
[399995475,1766992245403,-500.0,0.00041499,120]
[399995476,1766992245412,-500.0,0.00041499,120]
[399995477,1766992245421,-500.0,0.00041499,120]
[399995478,1766992245430,-500.0,0.00041499,120]
[399995479,1766992245439,-500.0,0.00041499,120]
[399995480,1766992245448,-250.0,0.00041499,120]
[399995481,1766992245457,-500.0,0.00041499,120]
[399995482,1766992245466,-500.0,0.00041499,120]
[399995483,1766992245476,-500.0,0.00041499,120]
[399995484,1766992245484,-500.0,0.00041499,120]
[399995485,1766992245494,-1000.0,0.00041499,120]
[399995486,1766992245503,-500.0,0.00041499,120]
[399995487,1766992245512,-250.0,0.00041499,120]
[399995488,1766992245521,-500.0,0.00041499,120]
[399995489,1766992245531,-500.0,0.00041499,120]
[399995490,1766992245540,-500.0,0.00041499,120]
[399995492,1766992245549,-1000.0,0.00041499,120]
[399995494,1766992245558,-500.0,0.00041499,120]
[399995495,1766992245568,-500.0,0.00041499,120]
[399995496,1766992245577,-250.0,0.00041499,120]
[399995497,1766992245586,-414.0,0.00041499,120]
[399995498,1766992245595,-250.0,0.00041499,120]
[399995499,1766992245606,-518.5,0.00041499,120]
[399995500,1766992245615,-1000.0,0.00041499,120]
[399995501,1766992245625,-500.0,0.00041499,120]
[399995502,1766992245634,-250.0,0.00041499,120]
[399995503,1766992245643,-500.0,0.00041499,120]
[399995504,1766992245652,-500.0,0.00041499,120]
[399995505,1766992245662,-429.318,0.00041499,120]
[399995506,1766992245671,-250.0,0.00041499,120]
[399995507,1766992245680,-554.99798309,0.00041499,120]
[399995508,1766992245690,-262.95480144,0.00041499,120]
[399995509,1766992245700,-1000.0,0.00041499,120]
[399995510,1766992245709,-500.0,0.00041499,120]
[399995511,1766992245719,-250.0,0.00041499,120]
[399995512,1766992245729,-500.0,0.00041499,120]
[399995513,1766992245739,-445.202766,0.00041499,120]
[399995514,1766992245751,-250.0,0.00041499,120]
[399995515,1766992245762,-1000.0,0.00041499,120]
[399995516,1766992245773,-500.0,0.00041499,120]
[399995517,1766992245783,-250.0,0.00041499,120]
[399995518,1766992245792,-500.0,0.00041499,120]
[399995519,1766992245802,-461.67526834,0.00041499,120]
[399995521,1766992245812,-250.0,0.00041499,120]
[399995522,1766992245822,-1000.0,0.00041499,120]
[399995523,1766992245832,-500.0,0.00041499,120]
[399995524,1766992245842,-250.0,0.00041499,120]
[399995525,1766992245852,-478.75725327,0.00041499,120]
[399995526,1766992245863,-1000.0,0.00041499,120]
[399995527,1766992245873,-500.0,0.00041499,120]
[399995528,1766992245883,-250.0,0.00041499,120]
[399995529,1766992245893,-496.47127164,0.00041499,120]
[399995530,1766992245904,-500.0,0.00041499,120]
[399995531,1766992245916,-1098.41805515,0.00041499,120]
[399995533,1766992245927,-484.29401531,0.00041499,120]
[399995534,1766992245938,-500.0,0.00041499,120]
[399995535,1766992245947,-500.0,0.00041499,120]
[399995536,1766992245956,-500.0,0.00041499,120]
[399995537,1766992245966,-1500.0,0.00041499,120]
[399995538,1766992245975,-500.0,0.00041499,120]
[399995539,1766992245985,-500.0,0.00041499,120]
[399995540,1766992245994,-319.51086651,0.00041499,120]
[399995541,1766992246002,-151.0,0.00041499,120]
[399995542,1766992246011,-151.0,0.00041499,120]
[399995543,1766992246020,-151.0,0.00041499,120]
[399995544,1766992246030,-151.0,0.00041499,120]
[399995545,1766992246039,-514.51547206,0.00041499,120]
[399995546,1766992246049,-151.0,0.00041499,120]
[399995547,1766992246059,-151.0,0.00041499,120]
[399995548,1766992246068,-75061.11273608,0.000415,27]
[399995549,1766992246078,-150.0,0.000415,120]
[399995550,1766992246089,-325321.81340032,0.000415,120]
[399995551,1766992246369,-4593.71028193,0.00018125,2]
[399995552,1766992246380,-17668.4420146,0.00018125,2]
[399995553,1766992246504,-151.0,0.00017088,2]
[399995554,1766992246515,-151.0,0.00017088,2]
[399995555,1766992246525,-206.95983032,0.00018125,2]
[399995556,1766992246536,-469.06607036,0.00018125,2]
[399995557,1766992246547,-599.26504549,0.00018125,2]
[399995558,1766992246558,-1130.40073013,0.00018125,2]
[399995559,1766992246581,-20577.40840691,0.00018125,2]
[399995560,1766992246595,-62405.32776393,0.00018125,2]
[399995561,1766992246606,-5436.24327808,0.00018125,2]
[399995562,1766992246697,-349.87046341,0.00018125,2]
[399995563,1766992246707,-866.3099,0.00018125,2]
[399995564,1766992246718,-120032.1554168,0.00018125,2]
[399995565,1766992246729,-365.6300001,0.00018125,2]
[399995566,1766992246739,-808.13842488,0.00018125,2]
[399995567,1766992246750,-6556.42355414,0.00018125,2]
[399995568,1766992246761,-1734.15988836,0.00018125,2]
[399995569,1766992246770,-304.22,0.00018125,2]
[399995570,1766992246780,-8964.0,0.00018125,2]
[399995592,1766992805741,503.13,0.00010566,2]
[399995593,1766992805933,503.13,0.00011122,2]
[399995594,1766992806135,503.13,0.00011679,2]
[399995595,1766992806538,503.13,0.00012235,2]
[399995596,1766992806744,503.13,0.00012791,2]
[399995597,1766992808768,-503.13,0.00013347,2]
[399995598,1766992808795,-4.71450148,0.00013903,2]
[399995599,1766992811444,-294.57177535,0.00013903,2]
[399995604,1766993025093,919.5428777,0.0003,120]
[399995606,1766993097143,218.15,0.00025558,120]
[399995620,1766993403156,6000.0,0.00014,4]
[399995632,1766993431610,-203.84372317,0.00013903,2]
[399995634,1766993431620,-250.0,0.00014131,2]
[399995635,1766993431631,-195.0,0.00014131,2]
[399995636,1766993431640,-159.40048075,0.00014359,2]
[399995637,1766993431649,-6941.79430765,0.0001439,2]
[399995638,1766993431668,-462.1300956,0.0001439,2]
[399995639,1766993431679,-1075.43,0.0001439,2]
[399995640,1766993431741,-119.89370044,0.0001439,2]
[399995641,1766993431751,-503.13,0.00014459,2]
[399995642,1766993431760,-192.80030304,0.00014573,2]
[399995643,1766993431771,-303.66970715,0.00014573,2]
[399995644,1766993431782,-500.0,0.00014845,2]
[399995645,1766993431796,-65.89029285,0.00014998,2]
[399995646,1766993431808,-234.10970715,0.00014998,2]
[399995647,1766993431818,-300.0,0.00014998,2]
[399995648,1766993431827,-464.89029285,0.00014999,2]
[399995649,1766993431844,-4550.02970715,0.00014999,2]
[399995650,1766993431853,-2042.7376147,0.00015,2]
[399995651,1766993431863,-5934.99281096,0.00015,2]
[399995652,1766993431875,-15446.20726218,0.00015,2]
[399995653,1766993431885,-1155.89304185,0.00015,2]
[399995654,1766993431894,-10682.19880959,0.00015,2]
[399995655,1766993431905,-594.61795665,0.00015,2]
[399995656,1766993431917,-271.414428,0.00015,2]
[399995657,1766993431928,-384.78397968,0.00015,2]
[399995658,1766993431939,-1749.08827873,0.00015,2]
[399995659,1766993431950,-1815.05849312,0.00015,2]
[399995661,1766993431962,-331.85097769,0.00015,2]
[399995685,1766993437747,-2774.8928558,0.00015,2]
[399995686,1766993437758,-10066.3749066,0.00015,2]
[399995687,1766993437769,-344.7583546,0.00015,2]
[399995688,1766993437780,-4601.42155349,0.00015,2]
[399995689,1766993437792,-503.13,0.00015015,2]
[399995690,1766993437802,-200.0,0.00015159,2]
[399995691,1766993437814,-250.0,0.00015294,2]
[399995692,1766993437824,-195.0,0.00015294,2]
[399995693,1766993437836,-1517.64,0.000153,2]
[399995694,1766993437845,-999.0,0.00015391,3]
[399995695,1766993437856,-506.37100489,0.000154,2]
[399995696,1766993437867,-8761.97001149,0.00015556,2]
[399995697,1766993437881,-527.48292068,0.00015556,2]
[399995698,1766993437894,-2669.33414357,0.00015556,2]
[399995699,1766993437904,-503.13,0.00015572,2]
[399995700,1766993437913,-186.85634415,0.00015807,2]
[399995701,1766993437928,-581.89767635,0.00015807,2]
[399995702,1766993437940,-1017.39060821,0.00015807,2]
[399995714,1766993439890,-360.10676056,0.00015807,2]
[399995715,1766993439901,-85.0770825,0.00015807,2]
[399995716,1766993439911,-325.4429175,0.000159,2]
[399995717,1766993439923,-3965.4984357,0.000159,2]
[399995718,1766993439932,-550.0,0.00015973,2]
[399995719,1766993439941,-523.67920034,0.00015973,2]
[399995720,1766993439951,-151.0,0.00015973,2]
[399995721,1766993439960,-151.0,0.00015973,2]
[399995722,1766993439970,-500.0,0.00015999,2]
[399995723,1766993439980,-321.01045465,0.00015999,2]
[399995724,1766993439989,-3905.46183899,0.00016,2]
[399995725,1766993440005,-13059.6020301,0.00016,2]
[399995726,1766993440014,-117599.1752179,0.00016,2]
[399995727,1766993440024,-7053.23114381,0.00016,4]
[399995728,1766993440033,-4290.94135313,0.00016011,2]
[399995729,1766993440043,-4290.94135313,0.00016122,2]
[399995730,1766993440052,-150.99,0.00016128,2]
[399995731,1766993440062,-503.13,0.00016128,2]
[399995732,1766993440072,-5000.00443169,0.000162,5]
[399995733,1766993440081,-167.65658049,0.00016201,2]
[399995734,1766993440091,-12885.68742406,0.00016201,2]
[399995735,1766993440100,-173.55490716,0.00016215,2]
[399995736,1766993440110,-383.47290486,0.00016224,2]
[399995737,1766993440120,-156.01391884,0.00016224,2]
[399995738,1766993440129,-900074.31620573,0.00016225,2]
[399995739,1766993440166,-99925.68379427,0.00016225,2]
[399995740,1766993440177,-4290.94135313,0.00016233,2]
[399995741,1766993440186,-12885.68742405,0.0001628,2]
[399995742,1766993440195,-3154.32,0.00016302,2]
[399995743,1766993440205,-28020.56,0.00016325,2]
[399995744,1766993440215,-1767.94,0.00016325,2]
[399995745,1766993440224,-4290.94135313,0.00016344,2]
[399995746,1766993440233,-12885.68742405,0.00016359,2]
[399995747,1766993440242,-500.0,0.00016438,2]
[399995748,1766993440252,-500.0,0.00016438,2]
[399995749,1766993440261,-399.6838665,0.00016438,2]
[399995750,1766993440271,-12885.68742405,0.00016439,2]
[399995751,1766993440280,-164.63,0.0001644,2]
[399995752,1766993440289,-4290.94135313,0.00016456,2]
[399995753,1766993440299,-162.84151805,0.00016497,2]
[399995754,1766993440308,-12885.68742405,0.00016518,2]
[399995755,1766993440317,-12885.68742405,0.00016597,2]
[399995756,1766993440327,-12885.68742405,0.00016676,2]
[399995757,1766993440337,-503.13,0.00016684,2]
[399995758,1766993440346,-12885.68742405,0.00016756,2]
[399995759,1766993440355,-162.84151805,0.00016814,2]
[399995760,1766993440365,-12885.68742405,0.00016835,2]